{"text_format":"3","workbook":"xlsx","n_sheets":2,"sheets":["ПОЧАТОК","ОСОБИСТИЙ МІСЯЧНИЙ БЮДЖЕТ"],"read":"whole","date_system":"1900"}

{"sheet":"ПОЧАТОК","index":0,"n_rows":7,"n_cols":2,"rows_kept":7}
[null,"ПРО ЦЕЙ ШАБЛОН"]
[null,"За допомогою цього аркуша особистий місячний бюджет ви можете відстежувати свої заплановані й фактичні доходи та витрати за місяць."]
[null,"Введіть витрати, віднесені до різних категорій, у відповідні таблиці."]
[null,"Прогнозований баланс, фактичний баланс і різниця обчислюються автоматично."]
[null,"Примітка. "]
[null,"Додаткові вказівки наведено в стовпці A на аркуші \"ОСОБИСТИЙ МІСЯЧНИЙ БЮДЖЕТ\". Цей текст приховано навмисно. Щоб вилучити текст, виберіть стовпець A й натисніть клавішу Delete. Щоб відобразити текст, виберіть стовпець A та змініть колір шрифту."]
[null,"Щоб дізнатися більше про таблиці на цьому аркуші, натисніть клавіші Shift+F10 у таблиці, виберіть \"Таблиця\" а потім – \"Текст заміщення\"."]

{"sheet":"ОСОБИСТИЙ МІСЯЧНИЙ БЮДЖЕТ","index":1,"n_rows":64,"n_cols":10,"rows_kept":64,"merged":[[3,1,5,1],[3,2,3,3],[3,6,4,8],[3,9,4,9],[4,2,4,3],[5,2,5,3],[5,6,6,8],[5,9,6,9],[7,1,9,1],[7,2,7,3],[7,6,8,8],[7,9,8,9],[8,2,8,3],[9,2,9,3],[22,6,22,9],[23,1,23,4],[31,6,31,9],[33,1,33,4],[38,6,38,9],[40,1,40,4],[44,6,44,9],[46,1,46,4],[50,6,50,9],[54,1,54,4],[57,6,57,9],[58,6,59,8],[58,9,59,9],[60,6,61,8],[60,9,61,9],[62,6,63,8],[62,9,63,9],[64,1,64,4]]}
["Створіть особистий місячний бюджет на цьому аркуші. Корисні вказівки з використання цього аркуша наведено в клітинках цього стовпця. Клацніть стрілку вниз, щоб почати."]
["Заголовок цього аркуша наведено в клітинці праворуч. Подальші вказівки наведено в клітинці A4.","ОСОБИСТИЙ МІСЯЧНИЙ БЮДЖЕТ"]
[]
["Запланований місячний дохід наведено в клітинці праворуч. Введіть дохід 1 у клітинку E4 та додатковий дохід у клітинку E5, щоб обчислити загальний щомісячний дохід у клітинці E6. Подальші вказівки наведено в клітинці A6.","ЗАПЛАНОВАНИЙ ЩОМІСЯЧНИЙ ДОХІД","Дохід 1",null,{"v":4300,"d":"4,300.00₴"},null,"ПРОГНОЗОВАНИЙ БАЛАНС \n(різниця запланованого доходу й витрат)",null,null,{"$f":"E6-J59","v":{"v":3405,"d":"3,405.00₴"}}]
[null,null,"Додатковий дохід",null,{"v":300,"d":"300.00₴"}]
["прогнозований баланс автоматично обчислюється в клітинці J4, фактичний баланс – у клітинці J6, а різниця – у клітинці J8. Подальші вказівки наведено в клітинці A8.",null,"Загальний щомісячний дохід",null,{"$f":"SUM(E4:E5)","v":{"v":4600,"d":"4,600.00₴"}},null,"ФАКТИЧНИЙ БАЛАНС \n(різниця фактичного доходу й витрат)",null,null,{"$f":"E10-J61","v":{"v":3064,"d":"3,064.00₴"}}]
[]
["Заголовок стовпця \"Фактичний щомісячний дохід\" наведено в клітинці праворуч. Введіть дохід 1 у клітинку E8 і додатковий дохід у клітинку E9, щоб обчислити загальний щомісячний дохід у клітинці E10. Подальші вказівки наведено в клітинці A12.","ФАКТИЧНИЙ ЩОМІСЯЧНИЙ ДОХІД","Дохід 1",null,{"v":4000,"d":"4,000.00₴"},null,"РІЗНИЦЯ \n(різниця запланованих і фактичних значень)",null,null,{"$f":"J6-J4","v":{"v":-341,"d":"-341.00₴"}}]
[null,null,"Додатковий дохід",null,{"v":300,"d":"300.00₴"}]
[null,null,"Загальний щомісячний дохід",null,{"$f":"SUM(E8:E9)","v":{"v":4300,"d":"4,300.00₴"}}]
[]
["Введіть докладні відомості в таблицю \"Послуги\", починаючи з клітинки праворуч, і в таблицю \"Розваги\", починаючи з клітинки G12. Подальші вказівки наведено в клітинці A25.","ПОСЛУГИ","Прогнозовані витрати","Фактичні витрати","Різниця",null,"РОЗВАГИ","Прогнозовані витрати","Фактичні витрати","Різниця"]
[null,"Іпотека або оренда",{"v":1000,"d":"1,000.00₴"},{"v":1000,"d":"1,000.00₴"},{"$f":"Побут[[#This Row],[Прогнозовані витрати]]-Побут[[#This Row],[Фактичні витрати]]","v":{"v":0,"d":"0.00₴"}},null,"Відео/DVD",null,null,{"$f":"Розваги[[#This Row],[Прогнозовані витрати]]-Розваги[[#This Row],[Фактичні витрати]]","v":{"v":0,"d":"0.00₴"}}]
[null,"Номер телефону",{"v":54,"d":"54.00₴"},{"v":100,"d":"100.00₴"},{"$f":"Побут[[#This Row],[Прогнозовані витрати]]-Побут[[#This Row],[Фактичні витрати]]","v":{"v":-46,"d":"-46.00₴"}},null,"Компакт-диски",null,null,{"$f":"Розваги[[#This Row],[Прогнозовані витрати]]-Розваги[[#This Row],[Фактичні витрати]]","v":{"v":0,"d":"0.00₴"}}]
[null,"Електроенергія",{"v":44,"d":"44.00₴"},{"v":56,"d":"56.00₴"},{"$f":"Побут[[#This Row],[Прогнозовані витрати]]-Побут[[#This Row],[Фактичні витрати]]","v":{"v":-12,"d":"-12.00₴"}},null,"Фільми",null,null,{"$f":"Розваги[[#This Row],[Прогнозовані витрати]]-Розваги[[#This Row],[Фактичні витрати]]","v":{"v":0,"d":"0.00₴"}}]
[null,"Газ",{"v":22,"d":"22.00₴"},{"v":28,"d":"28.00₴"},{"$f":"Побут[[#This Row],[Прогнозовані витрати]]-Побут[[#This Row],[Фактичні витрати]]","v":{"v":-6,"d":"-6.00₴"}},null,"Концерти",null,null,{"$f":"Розваги[[#This Row],[Прогнозовані витрати]]-Розваги[[#This Row],[Фактичні витрати]]","v":{"v":0,"d":"0.00₴"}}]
[null,"Постачання води й водовідведення",{"v":8,"d":"8.00₴"},{"v":8,"d":"8.00₴"},{"$f":"Побут[[#This Row],[Прогнозовані витрати]]-Побут[[#This Row],[Фактичні витрати]]","v":{"v":0,"d":"0.00₴"}},null,"Спортивні події",null,null,{"$f":"Розваги[[#This Row],[Прогнозовані витрати]]-Розваги[[#This Row],[Фактичні витрати]]","v":{"v":0,"d":"0.00₴"}}]
[null,"Кабельне ТБ",{"v":34,"d":"34.00₴"},{"v":34,"d":"34.00₴"},{"$f":"Побут[[#This Row],[Прогнозовані витрати]]-Побут[[#This Row],[Фактичні витрати]]","v":{"v":0,"d":"0.00₴"}},null,"Театри",null,null,{"$f":"Розваги[[#This Row],[Прогнозовані витрати]]-Розваги[[#This Row],[Фактичні витрати]]","v":{"v":0,"d":"0.00₴"}}]
[null,"Вивезення сміття",{"v":10,"d":"10.00₴"},{"v":10,"d":"10.00₴"},{"$f":"Побут[[#This Row],[Прогнозовані витрати]]-Побут[[#This Row],[Фактичні витрати]]","v":{"v":0,"d":"0.00₴"}},null,"Інші",null,null,{"$f":"Розваги[[#This Row],[Прогнозовані витрати]]-Розваги[[#This Row],[Фактичні витрати]]","v":{"v":0,"d":"0.00₴"}}]
[null,"Обслуговування або ремонт",{"v":23,"d":"23.00₴"},{"v":0,"d":"0.00₴"},{"$f":"Побут[[#This Row],[Прогнозовані витрати]]-Побут[[#This Row],[Фактичні витрати]]","v":{"v":23,"d":"23.00₴"}},null,"Інше",null,null,{"$f":"Розваги[[#This Row],[Прогнозовані витрати]]-Розваги[[#This Row],[Фактичні витрати]]","v":{"v":0,"d":"0.00₴"}}]
[null,"Матеріали",{"v":0,"d":"0.00₴"},{"v":0,"d":"0.00₴"},{"$f":"Побут[[#This Row],[Прогнозовані витрати]]-Побут[[#This Row],[Фактичні витрати]]","v":{"v":0,"d":"0.00₴"}},null,"Інші",null,null,{"$f":"Розваги[[#This Row],[Прогнозовані витрати]]-Розваги[[#This Row],[Фактичні витрати]]","v":{"v":0,"d":"0.00₴"}}]
[null,"Інші",{"v":0,"d":"0.00₴"},{"v":0,"d":"0.00₴"},{"$f":"Побут[[#This Row],[Прогнозовані витрати]]-Побут[[#This Row],[Фактичні витрати]]","v":{"v":0,"d":"0.00₴"}},null,"Проміжний підсумок",null,null,{"$f":"SUBTOTAL(109,Розваги[Різниця])","v":{"v":0,"d":"0.00₴"}}]
[null,"Проміжний підсумок",null,null,{"$f":"SUBTOTAL(109,Побут[Різниця])","v":{"v":-41,"d":"-41.00₴"}}]
[{"$nulls":6},"БОРГИ","Прогнозовані витрати","Фактичні витрати","Різниця"]
["Введіть докладні відомості в таблицю \"Транспорт\", починаючи з клітинки праворуч, і в таблицю \"Борги\", починаючи з клітинки G24. Подальші вказівки наведено в клітинці A35.","ТРАНСПОРТ","Прогнозовані витрати","Фактичні витрати","Різниця",null,"Особисті",null,null,{"$f":"Борги[[#This Row],[Прогнозовані витрати]]-Борги[[#This Row],[Фактичні витрати]]","v":{"v":0,"d":"0.00₴"}}]
[null,"Плата за авто",null,null,{"$f":"Транспорт[[#This Row],[Прогнозовані витрати]]-Транспорт[[#This Row],[Фактичні витрати]]","v":{"v":0,"d":"0.00₴"}},null,"На енергозбереження",null,null,{"$f":"Борги[[#This Row],[Прогнозовані витрати]]-Борги[[#This Row],[Фактичні витрати]]","v":{"v":0,"d":"0.00₴"}}]
[null,"Автобус/таксі",null,null,{"$f":"Транспорт[[#This Row],[Прогнозовані витрати]]-Транспорт[[#This Row],[Фактичні витрати]]","v":{"v":0,"d":"0.00₴"}},null,"Кредитна картка",null,null,{"$f":"Борги[[#This Row],[Прогнозовані витрати]]-Борги[[#This Row],[Фактичні витрати]]","v":{"v":0,"d":"0.00₴"}}]
[null,"Страхування",null,null,{"$f":"Транспорт[[#This Row],[Прогнозовані витрати]]-Транспорт[[#This Row],[Фактичні витрати]]","v":{"v":0,"d":"0.00₴"}},null,"Кредитна картка",null,null,{"$f":"Борги[[#This Row],[Прогнозовані витрати]]-Борги[[#This Row],[Фактичні витрати]]","v":{"v":0,"d":"0.00₴"}}]
[null,"Ліцензування",null,null,{"$f":"Транспорт[[#This Row],[Прогнозовані витрати]]-Транспорт[[#This Row],[Фактичні витрати]]","v":{"v":0,"d":"0.00₴"}},null,"Кредитна картка",null,null,{"$f":"Борги[[#This Row],[Прогнозовані витрати]]-Борги[[#This Row],[Фактичні витрати]]","v":{"v":0,"d":"0.00₴"}}]
[null,"Паливо",null,null,{"$f":"Транспорт[[#This Row],[Прогнозовані витрати]]-Транспорт[[#This Row],[Фактичні витрати]]","v":{"v":0,"d":"0.00₴"}},null,"Інші",null,null,{"$f":"Борги[[#This Row],[Прогнозовані витрати]]-Борги[[#This Row],[Фактичні витрати]]","v":{"v":0,"d":"0.00₴"}}]
[null,"Обслуговування",null,null,{"$f":"Транспорт[[#This Row],[Прогнозовані витрати]]-Транспорт[[#This Row],[Фактичні витрати]]","v":{"v":0,"d":"0.00₴"}},null,"Проміжний підсумок",null,null,{"$f":"SUBTOTAL(109,Борги[Різниця])","v":{"v":0,"d":"0.00₴"}}]
[null,"Інші",null,null,{"$f":"Транспорт[[#This Row],[Прогнозовані витрати]]-Транспорт[[#This Row],[Фактичні витрати]]","v":{"v":0,"d":"0.00₴"}}]
[null,"Проміжний підсумок",null,null,{"$f":"SUBTOTAL(109,Транспорт[Різниця])","v":{"v":0,"d":"0.00₴"}},null,"ПОДАТКИ","Прогнозовані витрати","Фактичні витрати","Різниця"]
[{"$nulls":6},"На доходи",null,null,{"$f":"Податки[[#This Row],[Прогнозовані витрати]]-Податки[[#This Row],[Фактичні витрати]]","v":{"v":0,"d":"0.00₴"}}]
["Введіть докладні відомості в таблицю \"Страхування\", починаючи з клітинки праворуч, і в таблицю \"Податки\", починаючи з клітинки G33. Подальші вказівки наведено в клітинці A42.","СТРАХУВАННЯ","Прогнозовані витрати","Фактичні витрати","Різниця",null,"На майно",null,null,{"$f":"Податки[[#This Row],[Прогнозовані витрати]]-Податки[[#This Row],[Фактичні витрати]]","v":{"v":0,"d":"0.00₴"}}]
[null,"Дім",null,null,{"$f":"Страхування[[#This Row],[Прогнозовані витрати]]-Страхування[[#This Row],[Фактичні витрати]]","v":{"v":0,"d":"0.00₴"}},null,"Місцеві",null,null,{"$f":"Податки[[#This Row],[Прогнозовані витрати]]-Податки[[#This Row],[Фактичні витрати]]","v":{"v":0,"d":"0.00₴"}}]
[null,"Здоров’я",null,null,{"$f":"Страхування[[#This Row],[Прогнозовані витрати]]-Страхування[[#This Row],[Фактичні витрати]]","v":{"v":0,"d":"0.00₴"}},null,"Інші",null,null,{"$f":"Податки[[#This Row],[Прогнозовані витрати]]-Податки[[#This Row],[Фактичні витрати]]","v":{"v":0,"d":"0.00₴"}}]
[null,"Життя",null,null,{"$f":"Страхування[[#This Row],[Прогнозовані витрати]]-Страхування[[#This Row],[Фактичні витрати]]","v":{"v":0,"d":"0.00₴"}},null,"Проміжний підсумок",null,null,{"$f":"SUBTOTAL(109,Податки[Різниця])","v":{"v":0,"d":"0.00₴"}}]
[null,"Інші",null,null,{"$f":"Страхування[[#This Row],[Прогнозовані витрати]]-Страхування[[#This Row],[Фактичні витрати]]","v":{"v":0,"d":"0.00₴"}}]
[null,"Проміжний підсумок",null,null,{"$f":"SUBTOTAL(109,Страхування[Різниця])","v":{"v":0,"d":"0.00₴"}},null,"ЗАОЩАДЖЕННЯ АБО ІНВЕСТИЦІЇ","Прогнозовані витрати","Фактичні витрати","Різниця"]
[{"$nulls":6},"Пенсійний внесок",null,null,{"$f":"Заощадження[[#This Row],[Прогнозовані витрати]]-Заощадження[[#This Row],[Фактичні витрати]]","v":{"v":0,"d":"0.00₴"}}]
["Введіть докладні відомості в таблицю \"Харчування\", починаючи з клітинки праворуч, і в таблицю \"Заощадження\", починаючи з клітинки G40. Подальші вказівки наведено в клітинці A48.","ХАРЧУВАННЯ","Прогнозовані витрати","Фактичні витрати","Різниця",null,"Депозити",null,null,{"$f":"Заощадження[[#This Row],[Прогнозовані витрати]]-Заощадження[[#This Row],[Фактичні витрати]]","v":{"v":0,"d":"0.00₴"}}]
[null,"Продукти",null,null,{"$f":"Їжа[[#This Row],[Прогнозовані витрати]]-Їжа[[#This Row],[Фактичні витрати]]","v":{"v":0,"d":"0.00₴"}},null,"Інші",null,null,{"$f":"Заощадження[[#This Row],[Прогнозовані витрати]]-Заощадження[[#This Row],[Фактичні витрати]]","v":{"v":0,"d":"0.00₴"}}]
[null,"Ресторани/кафе",null,null,{"$f":"Їжа[[#This Row],[Прогнозовані витрати]]-Їжа[[#This Row],[Фактичні витрати]]","v":{"v":0,"d":"0.00₴"}},null,"Проміжний підсумок",null,null,{"$f":"SUBTOTAL(109,Заощадження[Різниця])","v":{"v":0,"d":"0.00₴"}}]
[null,"Інші",null,null,{"$f":"Їжа[[#This Row],[Прогнозовані витрати]]-Їжа[[#This Row],[Фактичні витрати]]","v":{"v":0,"d":"0.00₴"}}]
[null,"Проміжний підсумок",null,null,{"$f":"SUBTOTAL(109,Їжа[Різниця])","v":{"v":0,"d":"0.00₴"}},null,"ПОДАРУНКИ Й ПОЖЕРТВИ","Прогнозовані витрати","Фактичні витрати","Різниця"]
[{"$nulls":6},"На благодійність 1",null,null,{"$f":"Подарунки[[#This Row],[Прогнозовані витрати]]-Подарунки[[#This Row],[Фактичні витрати]]","v":{"v":0,"d":"0.00₴"}}]
["Введіть докладні відомості в таблицю \"Домашні_улюбленці\", починаючи з клітинки праворуч, і в таблицю \"Подарунки\", починаючи з клітинки G46. Подальші вказівки наведено в клітинці A56.","Домашні_улюбленці","Прогнозовані витрати","Фактичні витрати","Різниця",null,"На благодійність 2",null,null,{"$f":"Подарунки[[#This Row],[Прогнозовані витрати]]-Подарунки[[#This Row],[Фактичні витрати]]","v":{"v":0,"d":"0.00₴"}}]
[null,"Їжа",null,null,{"$f":"Домашні_улюбленці[[#This Row],[Прогнозовані витрати]]-Домашні_улюбленці[[#This Row],[Фактичні витрати]]","v":{"v":0,"d":"0.00₴"}},null,"На благодійність 3",null,null,{"$f":"Подарунки[[#This Row],[Прогнозовані витрати]]-Подарунки[[#This Row],[Фактичні витрати]]","v":{"v":0,"d":"0.00₴"}}]
[null,"Медицина",null,null,{"$f":"Домашні_улюбленці[[#This Row],[Прогнозовані витрати]]-Домашні_улюбленці[[#This Row],[Фактичні витрати]]","v":{"v":0,"d":"0.00₴"}},null,"Проміжний підсумок",null,null,{"$f":"SUBTOTAL(109,Подарунки[Різниця])","v":{"v":0,"d":"0.00₴"}}]
[null,"Грумінг",null,null,{"$f":"Домашні_улюбленці[[#This Row],[Прогнозовані витрати]]-Домашні_улюбленці[[#This Row],[Фактичні витрати]]","v":{"v":0,"d":"0.00₴"}}]
[null,"Іграшки",null,null,{"$f":"Домашні_улюбленці[[#This Row],[Прогнозовані витрати]]-Домашні_улюбленці[[#This Row],[Фактичні витрати]]","v":{"v":0,"d":"0.00₴"}},null,"ЮРИДИЧНІ ПОСЛУГИ","Прогнозовані витрати","Фактичні витрати","Різниця"]
[null,"Інші",null,null,{"$f":"Домашні_улюбленці[[#This Row],[Прогнозовані витрати]]-Домашні_улюбленці[[#This Row],[Фактичні витрати]]","v":{"v":0,"d":"0.00₴"}},null,"Адвокат",null,null,{"$f":"Юридичні_послуги[[#This Row],[Прогнозовані витрати]]-Юридичні_послуги[[#This Row],[Фактичні витрати]]","v":{"v":0,"d":"0.00₴"}}]
[null,"Проміжний підсумок",null,null,{"$f":"SUBTOTAL(109,Домашні_улюбленці[Різниця])","v":{"v":0,"d":"0.00₴"}},null,"Аліменти",null,null,{"$f":"Юридичні_послуги[[#This Row],[Прогнозовані витрати]]-Юридичні_послуги[[#This Row],[Фактичні витрати]]","v":{"v":0,"d":"0.00₴"}}]
[{"$nulls":6},"Судові виплати",null,null,{"$f":"Юридичні_послуги[[#This Row],[Прогнозовані витрати]]-Юридичні_послуги[[#This Row],[Фактичні витрати]]","v":{"v":0,"d":"0.00₴"}}]
["Введіть докладні відомості в таблицю \"Догляд\", починаючи з клітинки праворуч, і в таблицю \"Юридичні_послуги\", починаючи з клітинки G52. Подальші вказівки наведено в клітинці A59.","ДОГЛЯД","Прогнозовані витрати","Фактичні витрати","Різниця",null,"Інші",null,null,{"$f":"Юридичні_послуги[[#This Row],[Прогнозовані витрати]]-Юридичні_послуги[[#This Row],[Фактичні витрати]]","v":{"v":0,"d":"0.00₴"}}]
[null,"Медицина",null,null,{"$f":"Догляд_за_собою[[#This Row],[Прогнозовані витрати]]-Догляд_за_собою[[#This Row],[Фактичні витрати]]","v":{"v":0,"d":"0.00₴"}},null,"Проміжний підсумок",null,null,{"$f":"SUBTOTAL(109,Юридичні_послуги[Різниця])","v":{"v":0,"d":"0.00₴"}}]
[null,"Волосся/нігті",null,null,{"$f":"Догляд_за_собою[[#This Row],[Прогнозовані витрати]]-Догляд_за_собою[[#This Row],[Фактичні витрати]]","v":{"v":0,"d":"0.00₴"}}]
["Загальна сума запланованих витрат автоматично обчислюється в клітинці J59, загальна сума фактичних витрат – у клітинці J61, а загальна різниця – у клітинці J63.","Одяг",null,null,{"$f":"Догляд_за_собою[[#This Row],[Прогнозовані витрати]]-Догляд_за_собою[[#This Row],[Фактичні витрати]]","v":{"v":0,"d":"0.00₴"}},null,"ЗАГАЛЬНІ ЗАПЛАНОВАНІ ВИТРАТИ",null,null,{"$f":"SUBTOTAL(109,Побут[Прогнозовані витрати],Транспорт[Прогнозовані витрати],Страхування[Прогнозовані витрати],Їжа[Прогнозовані витрати],Домашні_улюбленці[Прогнозовані витрати],Догляд_за_собою[Прогнозовані витрати],Розваги[Прогнозовані витрати],Борги[Прогнозовані витрати],Податки[Прогнозовані витрати],Заощадження[Прогнозовані витрати],Подарунки[Прогнозовані витрати],Юридичні_послуги[Прогнозовані витрати])","v":{"v":1195,"d":"1,195.00₴"}}]
[null,"Хімчистка",null,null,{"$f":"Догляд_за_собою[[#This Row],[Прогнозовані витрати]]-Догляд_за_собою[[#This Row],[Фактичні витрати]]","v":{"v":0,"d":"0.00₴"}}]
[null,"Спортзал",null,null,{"$f":"Догляд_за_собою[[#This Row],[Прогнозовані витрати]]-Догляд_за_собою[[#This Row],[Фактичні витрати]]","v":{"v":0,"d":"0.00₴"}},null,"ЗАГАЛЬНІ ФАКТИЧНІ ВИТРАТИ",null,null,{"$f":"SUBTOTAL(109,Побут[Фактичні витрати],Транспорт[Фактичні витрати],Страхування[Фактичні витрати],Їжа[Фактичні витрати],Домашні_улюбленці[Фактичні витрати],Догляд_за_собою[Фактичні витрати],Розваги[Фактичні витрати],Борги[Фактичні витрати],Податки[Фактичні витрати],Заощадження[Фактичні витрати],Подарунки[Фактичні витрати],Юридичні_послуги[Фактичні витрати])","v":{"v":1236,"d":"1,236.00₴"}}]
[null,"Екскурсії тощо",null,null,{"$f":"Догляд_за_собою[[#This Row],[Прогнозовані витрати]]-Догляд_за_собою[[#This Row],[Фактичні витрати]]","v":{"v":0,"d":"0.00₴"}}]
[null,"Інші",null,null,{"$f":"Догляд_за_собою[[#This Row],[Прогнозовані витрати]]-Догляд_за_собою[[#This Row],[Фактичні витрати]]","v":{"v":0,"d":"0.00₴"}},null,"ЗАГАЛЬНА РІЗНИЦЯ",null,null,{"$f":"J59-J61","v":{"v":-41,"d":"-41.00₴"}}]
[null,"Проміжний підсумок",null,null,{"$f":"SUBTOTAL(109,Догляд_за_собою[Різниця])","v":{"v":0,"d":"0.00₴"}}]